[Event "Titled Tuesday Blitz November 14 Early 2023"]
[White "Harshavardhan G B"]
[Black "Gholami Orimi, Mahdi"]
[WhiteFideId "25059009"]
[BlackFideId "12558486"]
[WhiteElo "2754"]
[BlackElo "2973"]
[Result "1-0"]
[Round "4"]
[TimeControl "180+1"]
[Date "2023.11.14"]
[WhiteClock "0:00:11"]
[BlackClock "0:00:03"]
[Board "15"]

1. d4 {[%clk 0:02:59]}  Nf6 {[%clk 0:02:59]} 2. c4 {[%clk 0:02:59]}  e6 {[%clk 0:02:59]} 3. Nc3 {[%clk 0:02:59]}  Bb4 {[%clk 0:02:58]} 4. f3 {[%clk 0:02:59]}  d5 {[%clk 0:02:51]} 5. a3 {[%clk 0:02:59]}  Bxc3+ {[%clk 0:02:47]} 6. bxc3 {[%clk 0:03:00]}  c5 {[%clk 0:02:43]} 7. cxd5 {[%clk 0:02:59]}  Nxd5 {[%clk 0:02:44]} 8. dxc5 {[%clk 0:02:58]}  Qa5 {[%clk 0:02:33]} 9. e4 {[%clk 0:02:56]}  Ne7 {[%clk 0:02:18]} 10. Be3 {[%clk 0:02:55]}  O-O {[%clk 0:02:16]} 11. Qb3 {[%clk 0:02:48]}  Nbc6 {[%clk 0:01:56]} 12. Kf2 {[%clk 0:02:46]}  e5 {[%clk 0:01:54]} 13. Bc4 {[%clk 0:02:44]}  Qc7 {[%clk 0:01:55]} 14. Ne2 {[%clk 0:02:39]}  Na5 {[%clk 0:01:54]} 15. Qb4 {[%clk 0:02:29]}  Nxc4 {[%clk 0:01:38]} 16. Qxc4 {[%clk 0:02:30]}  Be6 {[%clk 0:01:39]} 17. Qb5 {[%clk 0:02:26]}  f5 {[%clk 0:01:37]} 18. Rab1 {[%clk 0:02:10]}  Rab8 {[%clk 0:01:37]} 19. Qb4 {[%clk 0:01:49]}  fxe4 {[%clk 0:01:34]} 20. Qxe4 {[%clk 0:01:49]}  Bd5 {[%clk 0:01:29]} 21. Qh4 {[%clk 0:01:38]}  Nf5 {[%clk 0:01:27]} 22. Qb4 {[%clk 0:01:35]}  Qf7 {[%clk 0:01:13]} 23. Bc1 {[%clk 0:01:06]}  Qg6 {[%clk 0:01:06]} 24. Rd1 {[%clk 0:01:02]}  Bc6 {[%clk 0:01:03]} 25. Ng3 {[%clk 0:00:42]}  Nxg3 {[%clk 0:00:51]} 26. hxg3 {[%clk 0:00:43]}  Rbe8 {[%clk 0:00:33]} 27. Be3 {[%clk 0:00:40]}  Qf5 {[%clk 0:00:28]} 28. Qc4+ {[%clk 0:00:33]}  Kh8 {[%clk 0:00:28]} 29. g4 {[%clk 0:00:33]}  Qc2+ {[%clk 0:00:26]} 30. Qe2 {[%clk 0:00:20]}  Qxc3 {[%clk 0:00:23]} 31. Rh1 {[%clk 0:00:18]}  Qxa3 {[%clk 0:00:17]} 32. Qc2 {[%clk 0:00:18]}  e4 {[%clk 0:00:17]} 33. Ra1 {[%clk 0:00:17]}  Qd3 {[%clk 0:00:12]} 34. Qxd3 {[%clk 0:00:16]}  exd3 {[%clk 0:00:13]} 35. Rhd1 {[%clk 0:00:16]}  Rd8 {[%clk 0:00:09]} 36. Rxa7 {[%clk 0:00:16]}  Rd5 {[%clk 0:00:05]} 37. Ra3 {[%clk 0:00:16]}  Rfd8 {[%clk 0:00:05]} 38. Rd2 {[%clk 0:00:14]}  h6 {[%clk 0:00:05]} 39. Rb3 {[%clk 0:00:13]}  R8d7 {[%clk 0:00:05]} 40. Rb4 {[%clk 0:00:14]}  Kh7 {[%clk 0:00:05]} 41. f4 {[%clk 0:00:14]}  Kg6 {[%clk 0:00:05]} 42. g3 {[%clk 0:00:14]}  Kf7 {[%clk 0:00:06]} 43. Rb3 {[%clk 0:00:11]}  Ba4 {[%clk 0:00:06]} 44. Ra3 {[%clk 0:00:11]}  Bc2 {[%clk 0:00:06]} 45. Ra8 {[%clk 0:00:11]}  Re7 {[%clk 0:00:06]} 46. Rb8 {[%clk 0:00:10]}  Rdd7 {[%clk 0:00:06]} 47. Kf3 {[%clk 0:00:09]}  Re6 {[%clk 0:00:07]} 48. f5 {[%clk 0:00:09]}  Re5 {[%clk 0:00:06]} 49. Bf2 {[%clk 0:00:10]}  Rde7 {[%clk 0:00:06]} 50. Bd4 {[%clk 0:00:08]}  Re2 {[%clk 0:00:05]} 51. Rxe2 {[%clk 0:00:08]}  dxe2 {[%clk 0:00:06]} 52. Bf2 {[%clk 0:00:08]}  e1=Q {[%clk 0:00:06]} 53. Bxe1 {[%clk 0:00:08]}  Rxe1 {[%clk 0:00:07]} 54. Rxb7+ {[%clk 0:00:09]}  Kf6 {[%clk 0:00:07]} 55. Rb6+ {[%clk 0:00:08]}  Kf7 {[%clk 0:00:07]} 56. Rb7+ {[%clk 0:00:09]}  Kg8 {[%clk 0:00:07]} 57. Rb8+ {[%clk 0:00:09]}  Kh7 {[%clk 0:00:08]} 58. Kf2 {[%clk 0:00:09]}  Rc1 {[%clk 0:00:08]} 59. Rb7 {[%clk 0:00:08]}  Kg8 {[%clk 0:00:05]} 60. Rb8+ {[%clk 0:00:08]}  Kh7 {[%clk 0:00:04]} 61. Rb7 {[%clk 0:00:09]}  Be4 {[%clk 0:00:03]} 62. Re7 {[%clk 0:00:09]}  Bd5 {[%clk 0:00:03]} 63. f6 {[%clk 0:00:09]}  Rxc5 {[%clk 0:00:03]} 64. Rxg7+ {[%clk 0:00:09]}  Kh8 {[%clk 0:00:04]} 65. g5 {[%clk 0:00:09]}  hxg5 {[%clk 0:00:02]} 66. Rxg5 {[%clk 0:00:10]}  Rc2+ {[%clk 0:00:03]} 67. Ke3 {[%clk 0:00:11]}  Bf7 {[%clk 0:00:03]} 68. Rg7 {[%clk 0:00:11]}  Rc7 {[%clk 0:00:03]} 69. Kf4 {[%clk 0:00:11]}  Rc4+ {[%clk 0:00:03]} 70. Ke5 {[%clk 0:00:12]}  Rc7 {[%clk 0:00:03]} 71. Kd6 {[%clk 0:00:12]}  Ra7 {[%clk 0:00:04]} 72. g4 {[%clk 0:00:12]}  Ra6+ {[%clk 0:00:03]} 73. Ke5 {[%clk 0:00:12]}  Ra5+ {[%clk 0:00:03]} 74. Kf4 {[%clk 0:00:12]}  Ra4+ {[%clk 0:00:03]} 75. Kg5 {[%clk 0:00:13]}  Bg8 {[%clk 0:00:03]} 76. Rc7 {[%clk 0:00:12]}  Ra1 {[%clk 0:00:03]} 77. Kg6 {[%clk 0:00:12]}  Ra6 {[%clk 0:00:02]} 78. Rc8 {[%clk 0:00:11]}  Rb6 {[%clk 0:00:02]} 79. g5 {[%clk 0:00:12]}  Ra6 {[%clk 0:00:03]} 80. Kh6 {[%clk 0:00:12]}  Rb6 {[%clk 0:00:04]} 81. Rf8 {[%clk 0:00:13]}  Ra6 {[%clk 0:00:03]} 82. g6 {[%clk 0:00:13]}  Rxf6 {[%clk 0:00:01]} 83. Rxf6 {[%clk 0:00:12]}  Bf7 {[%clk 0:00:02]} 84. Rxf7 {[%clk 0:00:11]}  Kg8 {[%clk 0:00:03]} 85. Ra7 {[%clk 0:00:10]}  Kf8 {[%clk 0:00:04]} 86. Ra8+ {[%clk 0:00:10]}  Ke7 {[%clk 0:00:04]} 87. g7 {[%clk 0:00:10]}  Kf6 {[%clk 0:00:04]} 88. g8=Q {[%clk 0:00:11]}  Kf5 {[%clk 0:00:03]} 89. Re8 {[%clk 0:00:11]} 1-0


[Site "https://www.chess.com"]

[Event "Titled Tuesday Blitz November 14 Early 2023"]
[White "GatoRojo150"]
[Black "Mitrabha, Guha"]
[BlackFideId "5057000"]
[WhiteElo "2635"]
[BlackElo "2958"]
[Result "0-1"]
[Round "4"]
[TimeControl "180+1"]
[Date "2023.11.14"]
[WhiteClock "0:00:00"]
[BlackClock "0:00:08"]
[Board "17"]

1. e4 {[%clk 0:03:00]}  c6 {[%clk 0:02:59]} 2. Nc3 {[%clk 0:03:00]}  d5 {[%clk 0:03:00]} 3. Nf3 {[%clk 0:02:59]}  dxe4 {[%clk 0:02:59]} 4. Nxe4 {[%clk 0:03:00]}  Nf6 {[%clk 0:03:00]} 5. Qe2 {[%clk 0:03:00]}  Nxe4 {[%clk 0:03:00]} 6. Qxe4 {[%clk 0:03:00]}  Be6 {[%clk 0:03:01]} 7. b3 {[%clk 0:03:00]}  Nd7 {[%clk 0:02:59]} 8. Bb2 {[%clk 0:02:59]}  Nf6 {[%clk 0:03:00]} 9. Qh4 {[%clk 0:02:54]}  Bf5 {[%clk 0:02:58]} 10. O-O-O {[%clk 0:02:54]}  e6 {[%clk 0:02:58]} 11. Nd4 {[%clk 0:02:51]}  Bg6 {[%clk 0:02:57]} 12. Bc4 {[%clk 0:02:50]}  Be7 {[%clk 0:02:56]} 13. Bxe6 {[%clk 0:02:27]}  c5 {[%clk 0:02:30]} 14. Bxf7+ {[%clk 0:01:48]}  Kxf7 {[%clk 0:02:27]} 15. Nf3 {[%clk 0:01:40]}  Re8 {[%clk 0:01:45]} 16. Ne5+ {[%clk 0:01:16]}  Kg8 {[%clk 0:01:41]} 17. d4 {[%clk 0:01:09]}  Nd7 {[%clk 0:01:35]} 18. Qh3 {[%clk 0:01:04]}  Nxe5 {[%clk 0:01:33]} 19. dxe5 {[%clk 0:01:05]}  Qc8 {[%clk 0:01:30]} 20. Rd7 {[%clk 0:00:57]}  Qc6 {[%clk 0:01:19]} 21. Rhd1 {[%clk 0:00:53]}  c4 {[%clk 0:01:18]} 22. f4 {[%clk 0:00:32]}  Qe4 {[%clk 0:00:38]} 23. Qe6+ {[%clk 0:00:19]}  Bf7 {[%clk 0:00:37]} 24. Qg4 {[%clk 0:00:16]}  cxb3 {[%clk 0:00:25]} 25. axb3 {[%clk 0:00:17]}  Rac8 {[%clk 0:00:25]} 26. R1d2 {[%clk 0:00:18]}  Bxb3 {[%clk 0:00:21]} 27. R7d3 {[%clk 0:00:05]}  Bxc2 {[%clk 0:00:15]} 28. Rxc2 {[%clk 0:00:03]}  Rxc2+ {[%clk 0:00:10]} 29. Kxc2 {[%clk 0:00:04]}  Rd8 {[%clk 0:00:09]} 30. Qf3 {[%clk 0:00:03]}  Qc4+ {[%clk 0:00:09]} 31. Rc3 {[%clk 0:00:01]}  Qa4+ {[%clk 0:00:08]} 32. Rb3 {[%clk 0:00:01]}  Qc4+ {[%clk 0:00:06]} 33. Rc3 {[%clk 0:00:01]}  Qa4+ {[%clk 0:00:05]} 34. Rb3 {[%clk 0:00:01]}  b5 {[%clk 0:00:05]} 35. Kb1 {[%clk 0:00:01]}  b4 {[%clk 0:00:01]} 36. f5 {[%clk 0:00:02]}  Qb5 {[%clk 0:00:01]} 37. f6 {[%clk 0:00:02]}  gxf6 {[%clk 0:00:02]} 38. exf6 {[%clk 0:00:03]}  Bd6 {[%clk 0:00:02]} 39. f7+ {[%clk 0:00:04]}  Kf8 {[%clk 0:00:03]} 40. Qe3 {[%clk 0:00:03]}  Qf5+ {[%clk 0:00:04]} 41. Qd3 {[%clk 0:00:03]}  Qxf7 {[%clk 0:00:04]} 42. Rxb4 {[%clk 0:00:02]}  Be7 {[%clk 0:00:04]} 43. Qxd8+ {[%clk 0:00:03]}  Bxd8 {[%clk 0:00:05]} 44. Ba3 {[%clk 0:00:03]}  Qf1+ {[%clk 0:00:05]} 45. Ka2 {[%clk 0:00:03]}  Be7 {[%clk 0:00:04]} 46. Rb2 {[%clk 0:00:04]}  Qc4+ {[%clk 0:00:05]} 47. Rb3 {[%clk 0:00:03]}  Bxa3 {[%clk 0:00:05]} 48. Kxa3 {[%clk 0:00:04]}  Qc1+ {[%clk 0:00:06]} 49. Ka2 {[%clk 0:00:04]}  Qd2+ {[%clk 0:00:06]} 50. Rb2 {[%clk 0:00:05]}  Qd5+ {[%clk 0:00:06]} 51. Kb1 {[%clk 0:00:04]}  Qe4+ {[%clk 0:00:06]} 52. Ka2 {[%clk 0:00:04]}  Qe6+ {[%clk 0:00:06]} 53. Ka3 {[%clk 0:00:03]}  Qd6+ {[%clk 0:00:07]} 54. Kb3 {[%clk 0:00:03]}  Qxh2 {[%clk 0:00:08]} 55. g4 {[%clk 0:00:02]}  Qg3+ {[%clk 0:00:08]} 56. Ka2 {[%clk 0:00:02]}  Qxg4 {[%clk 0:00:08]} 57. Rb8+ {[%clk 0:00:03]}  Kf7 {[%clk 0:00:08]} 58. Rb7+ {[%clk 0:00:04]}  Kg6 {[%clk 0:00:09]} 59. Rb4 {[%clk 0:00:00]}  Qxb4 {[%clk 0:00:08]} 0-1


[Site "https://www.chess.com"]

[Event "Titled Tuesday Blitz November 14 Early 2023"]
[White "Bharath Subramaniyam H"]
[Black "Karas, Marek"]
[WhiteFideId "46634827"]
[BlackFideId "14928558"]
[WhiteElo "2926"]
[BlackElo "2550"]
[Result "1-0"]
[Round "4"]
[TimeControl "180+1"]
[Date "2023.11.14"]
[WhiteClock "0:02:11"]
[BlackClock "0:00:54"]
[Board "20"]

1. e4 {[%clk 0:03:00]}  e6 {[%clk 0:02:59]} 2. d4 {[%clk 0:03:00]}  d5 {[%clk 0:02:59]} 3. Nc3 {[%clk 0:03:01]}  Nf6 {[%clk 0:02:59]} 4. Bg5 {[%clk 0:03:00]}  Be7 {[%clk 0:02:58]} 5. e5 {[%clk 0:03:00]}  Nfd7 {[%clk 0:02:58]} 6. Bxe7 {[%clk 0:03:01]}  Qxe7 {[%clk 0:02:59]} 7. f4 {[%clk 0:03:01]}  a6 {[%clk 0:02:59]} 8. Nf3 {[%clk 0:03:02]}  c5 {[%clk 0:02:59]} 9. Qd2 {[%clk 0:03:01]}  Nc6 {[%clk 0:03:00]} 10. O-O-O {[%clk 0:03:02]}  b5 {[%clk 0:02:50]} 11. dxc5 {[%clk 0:03:01]}  Qxc5 {[%clk 0:02:42]} 12. Bd3 {[%clk 0:02:59]}  b4 {[%clk 0:02:36]} 13. Ne2 {[%clk 0:02:55]}  a5 {[%clk 0:02:35]} 14. f5 {[%clk 0:02:36]}  Ndxe5 {[%clk 0:02:24]} 15. Nxe5 {[%clk 0:02:37]}  Nxe5 {[%clk 0:02:23]} 16. Qg5 {[%clk 0:02:35]}  Nxd3+ {[%clk 0:02:11]} 17. Rxd3 {[%clk 0:02:36]}  Ba6 {[%clk 0:01:55]} 18. Rd2 {[%clk 0:02:36]}  Rg8 {[%clk 0:01:25]} 19. fxe6 {[%clk 0:02:35]}  fxe6 {[%clk 0:01:26]} 20. Nf4 {[%clk 0:02:34]}  Qe7 {[%clk 0:01:16]} 21. Qe5 {[%clk 0:02:17]}  O-O-O {[%clk 0:01:08]} 22. Nxd5 {[%clk 0:02:13]}  Qd6 {[%clk 0:00:58]} 23. Qxd6 {[%clk 0:02:11]}  Rxd6 {[%clk 0:00:54]} 24. Ne7+ {[%clk 0:02:11]} 1-0


[Site "https://www.chess.com"]

[Event "Titled Tuesday Blitz November 14 Early 2023"]
[White "Baskakov, Egor"]
[Black "Pourkashiyan, Atousa"]
[WhiteFideId "24197866"]
[BlackFideId "12502014"]
[WhiteElo "2924"]
[BlackElo "2522"]
[Result "1/2-1/2"]
[Round "4"]
[TimeControl "180+1"]
[Date "2023.11.14"]
[WhiteClock "0:00:16"]
[BlackClock "0:00:14"]
[Board "21"]

1. e4 {[%clk 0:03:00]}  c5 {[%clk 0:02:59]} 2. Nf3 {[%clk 0:03:01]}  e6 {[%clk 0:02:59]} 3. Be2 {[%clk 0:03:00]}  a6 {[%clk 0:02:58]} 4. c4 {[%clk 0:03:00]}  Nc6 {[%clk 0:02:54]} 5. Nc3 {[%clk 0:03:01]}  Nf6 {[%clk 0:02:50]} 6. O-O {[%clk 0:02:58]}  d6 {[%clk 0:02:50]} 7. d4 {[%clk 0:02:58]}  cxd4 {[%clk 0:02:50]} 8. Nxd4 {[%clk 0:02:58]}  Qc7 {[%clk 0:02:50]} 9. Be3 {[%clk 0:02:59]}  Be7 {[%clk 0:02:50]} 10. Rc1 {[%clk 0:02:59]}  Nxd4 {[%clk 0:02:49]} 11. Qxd4 {[%clk 0:02:58]}  O-O {[%clk 0:02:49]} 12. Rfd1 {[%clk 0:02:57]}  Bd7 {[%clk 0:02:48]} 13. h3 {[%clk 0:02:57]}  Rfd8 {[%clk 0:02:48]} 14. Rd2 {[%clk 0:02:34]}  Be8 {[%clk 0:02:46]} 15. Rcd1 {[%clk 0:02:32]}  Rac8 {[%clk 0:02:40]} 16. Qb6 {[%clk 0:02:29]}  Nd7 {[%clk 0:02:28]} 17. Qxc7 {[%clk 0:02:21]}  Rxc7 {[%clk 0:02:28]} 18. Na4 {[%clk 0:02:10]}  Rb8 {[%clk 0:01:47]} 19. Nb6 {[%clk 0:02:00]}  Nxb6 {[%clk 0:01:47]} 20. Bxb6 {[%clk 0:01:59]}  Rcc8 {[%clk 0:01:43]} 21. f4 {[%clk 0:01:46]}  Bc6 {[%clk 0:01:38]} 22. Bf3 {[%clk 0:01:44]}  f5 {[%clk 0:01:31]} 23. Re2 {[%clk 0:01:12]}  Kf7 {[%clk 0:01:15]} 24. b3 {[%clk 0:01:09]}  fxe4 {[%clk 0:01:09]} 25. Bxe4 {[%clk 0:01:08]}  Bxe4 {[%clk 0:01:10]} 26. Rxe4 {[%clk 0:01:08]}  Rc6 {[%clk 0:01:10]} 27. Ba7 {[%clk 0:01:08]}  Ra8 {[%clk 0:01:10]} 28. Bf2 {[%clk 0:01:05]}  b5 {[%clk 0:01:09]} 29. Rde1 {[%clk 0:00:46]}  bxc4 {[%clk 0:01:09]} 30. bxc4 {[%clk 0:00:46]}  Bf6 {[%clk 0:00:58]} 31. Rxe6 {[%clk 0:00:45]}  Rxc4 {[%clk 0:00:57]} 32. Rxd6 {[%clk 0:00:45]}  Rxf4 {[%clk 0:00:56]} 33. Rd7+ {[%clk 0:00:45]}  Kg6 {[%clk 0:00:53]} 34. Re3 {[%clk 0:00:42]}  h5 {[%clk 0:00:47]} 35. Rg3+ {[%clk 0:00:38]}  Kh7 {[%clk 0:00:48]} 36. Be3 {[%clk 0:00:26]}  Re4 {[%clk 0:00:44]} 37. Rf3 {[%clk 0:00:25]}  Rae8 {[%clk 0:00:34]} 38. Rxf6 {[%clk 0:00:23]}  Rxe3 {[%clk 0:00:33]} 39. Rxa6 {[%clk 0:00:23]}  Re1+ {[%clk 0:00:29]} 40. Kh2 {[%clk 0:00:24]}  R1e7 {[%clk 0:00:28]} 41. Rd5 {[%clk 0:00:21]}  Re5 {[%clk 0:00:27]} 42. Raa5 {[%clk 0:00:21]}  Rxd5 {[%clk 0:00:27]} 43. Rxd5 {[%clk 0:00:22]}  Ra8 {[%clk 0:00:27]} 44. Rd2 {[%clk 0:00:16]}  Ra3 {[%clk 0:00:26]} 45. Kg1 {[%clk 0:00:16]}  Kg6 {[%clk 0:00:26]} 46. Kf1 {[%clk 0:00:17]}  Kf5 {[%clk 0:00:24]} 47. Ke1 {[%clk 0:00:17]}  g5 {[%clk 0:00:24]} 48. Kd1 {[%clk 0:00:18]}  g4 {[%clk 0:00:22]} 49. hxg4+ {[%clk 0:00:18]}  Kxg4 {[%clk 0:00:22]} 50. Kc1 {[%clk 0:00:18]}  Kg3 {[%clk 0:00:20]} 51. Kb2 {[%clk 0:00:18]}  Ra8 {[%clk 0:00:18]} 52. a3 {[%clk 0:00:16]}  h4 {[%clk 0:00:18]} 53. Kb3 {[%clk 0:00:16]}  Rf8 {[%clk 0:00:13]} 54. a4 {[%clk 0:00:13]}  Rf2 {[%clk 0:00:11]} 55. Rxf2 {[%clk 0:00:13]}  Kxf2 {[%clk 0:00:11]} 56. a5 {[%clk 0:00:14]}  Kxg2 {[%clk 0:00:12]} 57. a6 {[%clk 0:00:14]}  h3 {[%clk 0:00:13]} 58. a7 {[%clk 0:00:15]}  h2 {[%clk 0:00:13]} 59. a8=Q+ {[%clk 0:00:15]}  Kg1 {[%clk 0:00:14]} 60. Qg8+ {[%clk 0:00:14]}  Kf2 {[%clk 0:00:14]} 61. Qf7+ {[%clk 0:00:14]}  Kg1 {[%clk 0:00:14]} 62. Qg6+ {[%clk 0:00:15]}  Kf2 {[%clk 0:00:13]} 63. Qf5+ {[%clk 0:00:15]}  Kg1 {[%clk 0:00:14]} 64. Qg4+ {[%clk 0:00:15]}  Kf2 {[%clk 0:00:14]} 65. Qh3 {[%clk 0:00:15]}  Kg1 {[%clk 0:00:14]} 66. Qxh2+ {[%clk 0:00:16]}  Kxh2 {[%clk 0:00:14]} 1/2-1/2


[Site "https://www.chess.com"]

[Event "Titled Tuesday Blitz November 14 Early 2023"]
[White "Idani, Pouya"]
[Black "Aravindh, Chithambaram VR."]
[WhiteFideId "12510130"]
[BlackFideId "5072786"]
[WhiteElo "2793"]
[BlackElo "2953"]
[Result "1-0"]
[Round "4"]
[TimeControl "180+1"]
[Date "2023.11.14"]
[WhiteClock "0:00:36"]
[BlackClock "0:00:00"]
[Board "26"]

1. e4 {[%clk 0:03:00]}  e6 {[%clk 0:02:55]} 2. d4 {[%clk 0:03:00]}  d5 {[%clk 0:02:55]} 3. e5 {[%clk 0:03:00]}  c5 {[%clk 0:02:55]} 4. c3 {[%clk 0:03:01]}  Bd7 {[%clk 0:02:54]} 5. Nf3 {[%clk 0:03:01]}  Qb6 {[%clk 0:02:54]} 6. Bd3 {[%clk 0:02:54]}  Bb5 {[%clk 0:02:54]} 7. dxc5 {[%clk 0:02:54]}  Bxc5 {[%clk 0:02:52]} 8. b4 {[%clk 0:02:54]}  Bxd3 {[%clk 0:02:42]} 9. Qxd3 {[%clk 0:02:55]}  Be7 {[%clk 0:02:38]} 10. O-O {[%clk 0:02:54]}  Nc6 {[%clk 0:02:34]} 11. Be3 {[%clk 0:02:40]}  Qc7 {[%clk 0:02:33]} 12. Nbd2 {[%clk 0:02:37]}  Nh6 {[%clk 0:02:27]} 13. Bxh6 {[%clk 0:02:34]}  gxh6 {[%clk 0:02:27]} 14. Rfe1 {[%clk 0:02:34]}  O-O-O {[%clk 0:02:26]} 15. Nb3 {[%clk 0:02:29]}  Kb8 {[%clk 0:02:25]} 16. a4 {[%clk 0:02:21]}  Rdg8 {[%clk 0:02:17]} 17. a5 {[%clk 0:02:18]}  a6 {[%clk 0:02:03]} 18. b5 {[%clk 0:02:15]}  axb5 {[%clk 0:02:04]} 19. a6 {[%clk 0:02:14]}  b6 {[%clk 0:01:59]} 20. Nbd4 {[%clk 0:02:13]}  Na7 {[%clk 0:01:56]} 21. Nxb5 {[%clk 0:02:01]}  Qc4 {[%clk 0:01:55]} 22. Qxc4 {[%clk 0:02:01]}  dxc4 {[%clk 0:01:56]} 23. Nxa7 {[%clk 0:01:57]}  Kxa7 {[%clk 0:01:57]} 24. Nd4 {[%clk 0:01:55]}  Rc8 {[%clk 0:01:51]} 25. Nb5+ {[%clk 0:01:46]}  Ka8 {[%clk 0:01:50]} 26. Re4 {[%clk 0:01:45]}  Rc5 {[%clk 0:01:19]} 27. Rb1 {[%clk 0:01:44]}  Rd8 {[%clk 0:01:13]} 28. g3 {[%clk 0:01:45]}  Rdd5 {[%clk 0:01:08]} 29. Nd4 {[%clk 0:01:39]}  Bd8 {[%clk 0:00:37]} 30. Rf4 {[%clk 0:01:25]}  Rd7 {[%clk 0:00:37]} 31. Nb5 {[%clk 0:01:23]}  h5 {[%clk 0:00:08]} 32. Nd6 {[%clk 0:01:15]}  f5 {[%clk 0:00:08]} 33. Rxc4 {[%clk 0:01:13]}  Rxc4 {[%clk 0:00:04]} 34. Nxc4 {[%clk 0:01:13]}  Ka7 {[%clk 0:00:05]} 35. Nd6 {[%clk 0:00:52]}  Be7 {[%clk 0:00:05]} 36. Nc8+ {[%clk 0:00:50]}  Kxa6 {[%clk 0:00:05]} 37. Rxb6+ {[%clk 0:00:50]}  Ka5 {[%clk 0:00:05]} 38. Rxe6 {[%clk 0:00:51]}  Bc5 {[%clk 0:00:04]} 39. Nd6 {[%clk 0:00:48]}  Ra7 {[%clk 0:00:02]} 40. Nxf5 {[%clk 0:00:46]}  Kb5 {[%clk 0:00:02]} 41. Rf6 {[%clk 0:00:44]}  Kc4 {[%clk 0:00:02]} 42. e6 {[%clk 0:00:43]}  Kd3 {[%clk 0:00:02]} 43. Rf7 {[%clk 0:00:41]}  Ra1+ {[%clk 0:00:01]} 44. Kg2 {[%clk 0:00:41]}  Ra2 {[%clk 0:00:02]} 45. Nd4 {[%clk 0:00:41]}  Kxc3 {[%clk 0:00:01]} 46. e7 {[%clk 0:00:39]}  Ra8 {[%clk 0:00:02]} 47. Ne6 {[%clk 0:00:38]}  Bd6 {[%clk 0:00:00]} 48. Rf8 {[%clk 0:00:36]} 1-0


[Site "https://www.chess.com"]

[Event "Titled Tuesday Blitz November 14 Early 2023"]
[White "Budisavljevic, Luka"]
[Black "Rustemov, Alexander"]
[WhiteFideId "960047"]
[BlackFideId "4119002"]
[WhiteElo "2769"]
[BlackElo "2913"]
[Result "1/2-1/2"]
[Round "4"]
[TimeControl "180+1"]
[Date "2023.11.14"]
[WhiteClock "0:00:16"]
[BlackClock "0:00:15"]
[Board "27"]

1. d4 {[%clk 0:03:00]}  d5 {[%clk 0:02:56]} 2. Nf3 {[%clk 0:02:59]}  c6 {[%clk 0:02:56]} 3. c4 {[%clk 0:02:58]}  Nf6 {[%clk 0:02:56]} 4. e3 {[%clk 0:02:58]}  a6 {[%clk 0:02:56]} 5. b3 {[%clk 0:02:54]}  Bf5 {[%clk 0:02:55]} 6. Bd3 {[%clk 0:02:54]}  e6 {[%clk 0:02:55]} 7. O-O {[%clk 0:02:54]}  Bxd3 {[%clk 0:02:50]} 8. Qxd3 {[%clk 0:02:55]}  Be7 {[%clk 0:02:49]} 9. Nbd2 {[%clk 0:02:51]}  O-O {[%clk 0:02:49]} 10. e4 {[%clk 0:02:52]}  dxe4 {[%clk 0:02:47]} 11. Nxe4 {[%clk 0:02:52]}  Nxe4 {[%clk 0:02:46]} 12. Qxe4 {[%clk 0:02:53]}  Nd7 {[%clk 0:02:46]} 13. Bb2 {[%clk 0:02:54]}  Re8 {[%clk 0:02:44]} 14. h3 {[%clk 0:02:50]}  Qa5 {[%clk 0:02:44]} 15. a3 {[%clk 0:02:49]}  Rad8 {[%clk 0:02:43]} 16. b4 {[%clk 0:02:48]}  Qh5 {[%clk 0:02:42]} 17. Ne5 {[%clk 0:02:39]}  Nxe5 {[%clk 0:02:37]} 18. dxe5 {[%clk 0:02:40]}  Rd7 {[%clk 0:02:25]} 19. Rfe1 {[%clk 0:02:30]}  Red8 {[%clk 0:02:24]} 20. Re3 {[%clk 0:02:30]}  Qg6 {[%clk 0:02:21]} 21. Rae1 {[%clk 0:02:22]}  Qxe4 {[%clk 0:02:17]} 22. Rxe4 {[%clk 0:02:23]}  g6 {[%clk 0:02:12]} 23. Bc1 {[%clk 0:02:14]}  Kg7 {[%clk 0:02:10]} 24. Kf1 {[%clk 0:01:59]}  Rd3 {[%clk 0:02:07]} 25. R4e3 {[%clk 0:01:57]}  R3d4 {[%clk 0:02:02]} 26. Rc3 {[%clk 0:01:55]}  Rd3 {[%clk 0:01:56]} 27. Rxd3 {[%clk 0:01:50]}  Rxd3 {[%clk 0:01:56]} 28. Re3 {[%clk 0:01:47]}  Rd1+ {[%clk 0:01:40]} 29. Re1 {[%clk 0:01:47]}  Rd4 {[%clk 0:01:40]} 30. c5 {[%clk 0:01:45]}  a5 {[%clk 0:01:36]} 31. Be3 {[%clk 0:01:42]}  Rd3 {[%clk 0:01:24]} 32. Ke2 {[%clk 0:00:57]}  Rxa3 {[%clk 0:01:22]} 33. Rd1 {[%clk 0:00:58]}  axb4 {[%clk 0:01:21]} 34. Rd7 {[%clk 0:00:58]}  Kf8 {[%clk 0:01:09]} 35. Rxb7 {[%clk 0:00:58]}  b3 {[%clk 0:00:44]} 36. Kd3 {[%clk 0:00:53]}  b2+ {[%clk 0:00:38]} 37. Kc4 {[%clk 0:00:29]}  Ra4+ {[%clk 0:00:38]} 38. Kc3 {[%clk 0:00:27]}  Ra5 {[%clk 0:00:38]} 39. Rxb2 {[%clk 0:00:15]}  Bxc5 {[%clk 0:00:37]} 40. Bh6+ {[%clk 0:00:16]}  Ke8 {[%clk 0:00:37]} 41. Rb8+ {[%clk 0:00:16]}  Kd7 {[%clk 0:00:37]} 42. Rb7+ {[%clk 0:00:17]}  Ke8 {[%clk 0:00:22]} 43. Rb8+ {[%clk 0:00:17]}  Kd7 {[%clk 0:00:21]} 44. Rb7+ {[%clk 0:00:18]}  Ke8 {[%clk 0:00:15]} 45. Rb8+ {[%clk 0:00:16]} 1/2-1/2


[Site "https://www.chess.com"]